[Event "Titled Tuesday Blitz May 11 2021"]
[White "Molina, Roberto Junio Brito"]
[Black "Juhasz, Agoston"]
[WhiteFideId "2109450"]
[BlackFideId "778346"]
[WhiteElo "2402"]
[BlackElo "2211"]
[Result "1-0"]
[Round "03"]
[TimeControl "180+1"]
[Date "2021.05.11"]
[WhiteClock "0:02:03"]
[BlackClock "0:00:19"]

1. d4 {[%clk 0:03:00]}  Nf6 {[%clk 0:02:54]} 2. c4 {[%clk 0:02:57]}  c6 {[%clk 0:02:54]} 3. Nf3 {[%clk 0:02:56]}  d5 {[%clk 0:02:53]} 4. Nc3 {[%clk 0:02:56]}  a6 {[%clk 0:02:49]} 5. e3 {[%clk 0:02:55]}  Bg4 {[%clk 0:02:46]} 6. h3 {[%clk 0:02:53]}  Bxf3 {[%clk 0:02:45]} 7. Qxf3 {[%clk 0:02:53]}  e6 {[%clk 0:02:44]} 8. Bd3 {[%clk 0:02:52]}  Nbd7 {[%clk 0:02:43]} 9. O-O {[%clk 0:02:52]}  Be7 {[%clk 0:02:38]} 10. Rd1 {[%clk 0:02:49]}  O-O {[%clk 0:02:35]} 11. b3 {[%clk 0:02:47]}  Qa5 {[%clk 0:02:27]} 12. Bb2 {[%clk 0:02:43]}  Ba3 {[%clk 0:02:25]} 13. Bxa3 {[%clk 0:02:42]}  Qxa3 {[%clk 0:02:26]} 14. Qe2 {[%clk 0:02:42]}  Rfd8 {[%clk 0:02:23]} 15. Rac1 {[%clk 0:02:38]}  Rac8 {[%clk 0:02:08]} 16. c5 {[%clk 0:02:32]}  e5 {[%clk 0:01:58]} 17. Qd2 {[%clk 0:02:32]}  a5 {[%clk 0:01:28]} 18. Na4 {[%clk 0:02:27]}  Re8 {[%clk 0:01:18]} 19. Qxa5 {[%clk 0:02:08]}  Qxa2 {[%clk 0:00:54]} 20. Qc3 {[%clk 0:02:06]}  exd4 {[%clk 0:00:50]} 21. exd4 {[%clk 0:02:07]}  Ne4 {[%clk 0:00:46]} 22. Bxe4 {[%clk 0:02:06]}  Rxe4 {[%clk 0:00:45]} 23. Rd2 {[%clk 0:02:06]}  Qa3 {[%clk 0:00:19]} 24. Ra1 {[%clk 0:02:03]} 1-0


[Site "https://www.chess.com"]

[Event "Titled Tuesday Blitz May 11 2021"]
[White "Murzin, Volodar"]
[Black "Oparin, Grigoriy"]
[WhiteFideId "44155573"]
[BlackFideId "24125890"]
[WhiteElo "2541"]
[BlackElo "2628"]
[Result "0-1"]
[Round "03"]
[TimeControl "180+1"]
[Date "2021.05.11"]
[WhiteClock "0:00:01"]
[BlackClock "0:00:45"]

1. e4 {[%clk 0:03:00]}  c5 {[%clk 0:03:00]} 2. Nf3 {[%clk 0:03:00]}  d6 {[%clk 0:03:00]} 3. d4 {[%clk 0:03:00]}  cxd4 {[%clk 0:03:01]} 4. Qxd4 {[%clk 0:02:59]}  Nf6 {[%clk 0:03:02]} 5. Be2 {[%clk 0:02:57]}  g6 {[%clk 0:02:58]} 6. O-O {[%clk 0:02:56]}  Bg7 {[%clk 0:02:59]} 7. Rd1 {[%clk 0:02:55]}  O-O {[%clk 0:02:59]} 8. Nc3 {[%clk 0:02:50]}  Nc6 {[%clk 0:02:57]} 9. Qe3 {[%clk 0:02:50]}  Ng4 {[%clk 0:02:57]} 10. Qf4 {[%clk 0:02:50]}  Bd7 {[%clk 0:02:54]} 11. Nd5 {[%clk 0:02:46]}  Nge5 {[%clk 0:02:49]} 12. Nxe5 {[%clk 0:02:44]}  dxe5 {[%clk 0:02:47]} 13. Qh4 {[%clk 0:02:27]}  Nd4 {[%clk 0:02:18]} 14. Nxe7+ {[%clk 0:01:17]}  Kh8 {[%clk 0:02:19]} 15. Bd3 {[%clk 0:01:09]}  Be8 {[%clk 0:01:33]} 16. c3 {[%clk 0:01:04]}  Nc6 {[%clk 0:01:31]} 17. Bg5 {[%clk 0:01:01]}  f6 {[%clk 0:01:29]} 18. Nxc6 {[%clk 0:00:56]}  Bxc6 {[%clk 0:01:29]} 19. Be3 {[%clk 0:00:48]}  Qe7 {[%clk 0:01:28]} 20. b4 {[%clk 0:00:40]}  b6 {[%clk 0:01:28]} 21. a4 {[%clk 0:00:35]}  Rfd8 {[%clk 0:01:27]} 22. Bc2 {[%clk 0:00:29]}  Qe6 {[%clk 0:01:22]} 23. Rxd8+ {[%clk 0:00:16]}  Rxd8 {[%clk 0:01:23]} 24. a5 {[%clk 0:00:16]}  Qc4 {[%clk 0:01:19]} 25. Rc1 {[%clk 0:00:04]}  Qxc3 {[%clk 0:01:17]} 26. h3 {[%clk 0:00:04]}  Qxb4 {[%clk 0:01:15]} 27. axb6 {[%clk 0:00:03]}  axb6 {[%clk 0:01:16]} 28. Qg4 {[%clk 0:00:03]}  Bd7 {[%clk 0:01:04]} 29. Qf3 {[%clk 0:00:01]}  b5 {[%clk 0:01:01]} 30. Rd1 {[%clk 0:00:02]}  Qe7 {[%clk 0:01:00]} 31. Bb6 {[%clk 0:00:02]}  Rc8 {[%clk 0:00:59]} 32. Bb3 {[%clk 0:00:03]}  Be6 {[%clk 0:00:58]} 33. Qd3 {[%clk 0:00:03]}  Bc4 {[%clk 0:00:55]} 34. Qc2 {[%clk 0:00:03]}  h5 {[%clk 0:00:54]} 35. Be3 {[%clk 0:00:03]}  Qe6 {[%clk 0:00:54]} 36. Bxc4 {[%clk 0:00:03]}  bxc4 {[%clk 0:00:54]} 37. Qc3 {[%clk 0:00:03]}  Kh7 {[%clk 0:00:53]} 38. h4 {[%clk 0:00:03]}  Qc6 {[%clk 0:00:52]} 39. f3 {[%clk 0:00:03]}  Bf8 {[%clk 0:00:52]} 40. Rd5 {[%clk 0:00:03]}  Kg7 {[%clk 0:00:51]} 41. f4 {[%clk 0:00:03]}  exf4 {[%clk 0:00:51]} 42. Bd4 {[%clk 0:00:04]}  Be7 {[%clk 0:00:50]} 43. Ra5 {[%clk 0:00:04]}  Qxe4 {[%clk 0:00:48]} 44. Ra7 {[%clk 0:00:04]}  Rc6 {[%clk 0:00:46]} 45. Kh2 {[%clk 0:00:02]}  f3 {[%clk 0:00:45]} 46. g3 {[%clk 0:00:01]}  Qe2+ {[%clk 0:00:44]} 47. Kh3 {[%clk 0:00:01]}  Qg2# {[%clk 0:00:45]} 0-1


[Site "https://www.chess.com"]

[Event "Titled Tuesday Blitz May 11 2021"]
[White "Nazaretyan, Tigran"]
[Black "Saraci, Nderim"]
[WhiteFideId "24162345"]
[BlackFideId "6351921"]
[WhiteElo "2247"]
[BlackElo "2486"]
[Result "1/2-1/2"]
[Round "03"]
[TimeControl "180+1"]
[Date "2021.05.11"]
[WhiteClock "0:00:19"]
[BlackClock "0:00:12"]

1. d4 {[%clk 0:03:00]}  Nf6 {[%clk 0:02:58]} 2. c4 {[%clk 0:03:00]}  e6 {[%clk 0:02:58]} 3. Nf3 {[%clk 0:03:00]}  d5 {[%clk 0:02:57]} 4. Nc3 {[%clk 0:03:00]}  c6 {[%clk 0:02:57]} 5. e3 {[%clk 0:03:00]}  Bd6 {[%clk 0:02:55]} 6. Qc2 {[%clk 0:02:59]}  Nbd7 {[%clk 0:02:55]} 7. Be2 {[%clk 0:02:58]}  O-O {[%clk 0:02:55]} 8. O-O {[%clk 0:02:58]}  Qe7 {[%clk 0:02:55]} 9. Rd1 {[%clk 0:02:56]}  b6 {[%clk 0:02:51]} 10. b3 {[%clk 0:02:56]}  Bb7 {[%clk 0:02:51]} 11. Bb2 {[%clk 0:02:56]}  Rac8 {[%clk 0:02:51]} 12. Rac1 {[%clk 0:02:55]}  Rfe8 {[%clk 0:02:50]} 13. h3 {[%clk 0:02:55]}  Ba3 {[%clk 0:02:49]} 14. Rd2 {[%clk 0:02:49]}  Bxb2 {[%clk 0:02:41]} 15. Qxb2 {[%clk 0:02:49]}  h6 {[%clk 0:02:40]} 16. Qb1 {[%clk 0:02:48]}  dxc4 {[%clk 0:02:40]} 17. bxc4 {[%clk 0:02:41]}  e5 {[%clk 0:02:33]} 18. c5 {[%clk 0:02:36]}  exd4 {[%clk 0:02:29]} 19. exd4 {[%clk 0:02:35]}  Rb8 {[%clk 0:02:27]} 20. cxb6 {[%clk 0:02:24]}  axb6 {[%clk 0:02:26]} 21. Bc4 {[%clk 0:02:22]}  c5 {[%clk 0:02:18]} 22. Re2 {[%clk 0:02:12]}  Qf8 {[%clk 0:02:16]} 23. Ne5 {[%clk 0:02:09]}  Nxe5 {[%clk 0:01:50]} 24. dxe5 {[%clk 0:02:09]}  Nh7 {[%clk 0:01:45]} 25. Rce1 {[%clk 0:01:55]}  Ng5 {[%clk 0:01:42]} 26. f4 {[%clk 0:01:53]}  Ne6 {[%clk 0:01:41]} 27. f5 {[%clk 0:01:43]}  Nd4 {[%clk 0:01:41]} 28. Re3 {[%clk 0:01:42]}  b5 {[%clk 0:01:38]} 29. Nxb5 {[%clk 0:01:37]}  Nxb5 {[%clk 0:01:19]} 30. Bxb5 {[%clk 0:01:35]}  Bc6 {[%clk 0:01:18]} 31. a4 {[%clk 0:01:35]}  c4 {[%clk 0:01:17]} 32. e6 {[%clk 0:01:20]}  fxe6 {[%clk 0:01:05]} 33. fxe6 {[%clk 0:01:20]}  Qc5 {[%clk 0:00:57]} 34. Kh1 {[%clk 0:01:06]}  Bxb5 {[%clk 0:00:40]} 35. Re5 {[%clk 0:01:05]}  Qa3 {[%clk 0:00:19]} 36. axb5 {[%clk 0:01:03]}  c3 {[%clk 0:00:19]} 37. Qd3 {[%clk 0:00:59]}  Qb2 {[%clk 0:00:17]} 38. Rc5 {[%clk 0:00:57]}  Red8 {[%clk 0:00:13]} 39. Qc4 {[%clk 0:00:48]}  Kh8 {[%clk 0:00:11]} 40. e7 {[%clk 0:00:48]}  Re8 {[%clk 0:00:12]} 41. Qxc3 {[%clk 0:00:31]}  Qxc3 {[%clk 0:00:12]} 42. Rxc3 {[%clk 0:00:32]}  Rxb5 {[%clk 0:00:12]} 43. Rd3 {[%clk 0:00:29]}  Rbb8 {[%clk 0:00:11]} 44. h4 {[%clk 0:00:28]}  Kg8 {[%clk 0:00:11]} 45. Rf3 {[%clk 0:00:27]}  Rb7 {[%clk 0:00:11]} 46. Rfe3 {[%clk 0:00:27]}  Kf7 {[%clk 0:00:11]} 47. Rf1+ {[%clk 0:00:27]}  Kg8 {[%clk 0:00:12]} 48. Rfe1 {[%clk 0:00:20]}  Kf7 {[%clk 0:00:12]} 49. Rf3+ {[%clk 0:00:20]}  Kg8 {[%clk 0:00:12]} 50. Rfe3 {[%clk 0:00:19]} 1/2-1/2


[Site "https://www.chess.com"]

[Event "Titled Tuesday Blitz May 11 2021"]
[White "Nguyen, Ngoc Truong Son"]
[Black "elohunter1999"]
[WhiteFideId "12401110"]
[WhiteElo "2596"]
[BlackElo "2557"]
[Result "0-1"]
[Round "03"]
[TimeControl "180+1"]
[Date "2021.05.11"]
[WhiteClock "0:00:02"]
[BlackClock "0:00:09"]

1. d4 {[%clk 0:03:00]}  Nf6 {[%clk 0:02:59]} 2. Nf3 {[%clk 0:03:00]}  d5 {[%clk 0:02:56]} 3. Bf4 {[%clk 0:03:00]}  c5 {[%clk 0:02:55]} 4. e3 {[%clk 0:03:00]}  Nc6 {[%clk 0:02:56]} 5. Nbd2 {[%clk 0:03:00]}  Qb6 {[%clk 0:02:52]} 6. dxc5 {[%clk 0:02:54]}  Qxb2 {[%clk 0:02:50]} 7. Rb1 {[%clk 0:02:54]}  Qc3 {[%clk 0:02:50]} 8. Bb5 {[%clk 0:02:51]}  e6 {[%clk 0:02:42]} 9. O-O {[%clk 0:02:48]}  Be7 {[%clk 0:02:29]} 10. Be5 {[%clk 0:02:07]}  Qxc5 {[%clk 0:02:19]} 11. c4 {[%clk 0:01:15]}  O-O {[%clk 0:01:53]} 12. Nb3 {[%clk 0:01:14]}  Qb6 {[%clk 0:01:53]} 13. Ba1 {[%clk 0:01:12]}  dxc4 {[%clk 0:01:37]} 14. Bxc4 {[%clk 0:01:10]}  Qc7 {[%clk 0:01:37]} 15. Qe2 {[%clk 0:01:07]}  a6 {[%clk 0:01:35]} 16. Rfc1 {[%clk 0:01:07]}  b5 {[%clk 0:01:28]} 17. Bd3 {[%clk 0:01:07]}  Bb7 {[%clk 0:01:28]} 18. Nfd4 {[%clk 0:00:54]}  Nxd4 {[%clk 0:00:59]} 19. Bxd4 {[%clk 0:00:41]}  Qd8 {[%clk 0:00:58]} 20. Rd1 {[%clk 0:00:36]}  Qd5 {[%clk 0:00:56]} 21. f3 {[%clk 0:00:34]}  Qh5 {[%clk 0:00:55]} 22. Na5 {[%clk 0:00:30]}  Bc8 {[%clk 0:00:32]} 23. Nc6 {[%clk 0:00:29]}  Bd6 {[%clk 0:00:32]} 24. g4 {[%clk 0:00:26]}  Qh4 {[%clk 0:00:31]} 25. Bxf6 {[%clk 0:00:24]}  Qxf6 {[%clk 0:00:26]} 26. Be4 {[%clk 0:00:20]}  e5 {[%clk 0:00:20]} 27. Ne7+ {[%clk 0:00:15]}  Qxe7 {[%clk 0:00:20]} 28. Bxa8 {[%clk 0:00:16]}  Bxg4 {[%clk 0:00:21]} 29. fxg4 {[%clk 0:00:15]}  Rxa8 {[%clk 0:00:20]} 30. Qd3 {[%clk 0:00:15]}  Bc5 {[%clk 0:00:19]} 31. Qe4 {[%clk 0:00:14]}  Re8 {[%clk 0:00:18]} 32. Kg2 {[%clk 0:00:14]}  g6 {[%clk 0:00:19]} 33. Rd5 {[%clk 0:00:13]}  Ba7 {[%clk 0:00:16]} 34. Rbd1 {[%clk 0:00:13]}  Qg5 {[%clk 0:00:16]} 35. Kf3 {[%clk 0:00:12]}  f5 {[%clk 0:00:15]} 36. gxf5 {[%clk 0:00:12]}  gxf5 {[%clk 0:00:15]} 37. Qc2 {[%clk 0:00:07]}  Qxe3+ {[%clk 0:00:15]} 38. Kg2 {[%clk 0:00:07]}  Qg5+ {[%clk 0:00:13]} 39. Kh1 {[%clk 0:00:07]}  Kh8 {[%clk 0:00:10]} 40. Qc6 {[%clk 0:00:06]}  Rg8 {[%clk 0:00:10]} 41. Rd7 {[%clk 0:00:02]}  Qg1+ {[%clk 0:00:09]} 0-1


[Site "https://www.chess.com"]

[Event "Titled Tuesday Blitz May 11 2021"]
[White "Noboa Silva, Kevin"]
[Black "Urazayev, Arystanbek"]
[WhiteFideId "3618471"]
[BlackFideId "13709810"]
[WhiteElo "2161"]
[BlackElo "2321"]
[Result "0-1"]
[Round "03"]
[TimeControl "180+1"]
[Date "2021.05.11"]
[WhiteClock "0:00:01"]
[BlackClock "0:00:07"]

1. d4 {[%clk 0:03:00]}  Nf6 {[%clk 0:02:58]} 2. c4 {[%clk 0:03:00]}  g6 {[%clk 0:02:59]} 3. Nc3 {[%clk 0:03:00]}  Bg7 {[%clk 0:02:59]} 4. e4 {[%clk 0:03:00]}  d6 {[%clk 0:02:59]} 5. h3 {[%clk 0:03:01]}  O-O {[%clk 0:02:59]} 6. Bg5 {[%clk 0:03:01]}  c5 {[%clk 0:02:58]} 7. d5 {[%clk 0:03:01]}  b5 {[%clk 0:02:57]} 8. cxb5 {[%clk 0:03:01]}  a6 {[%clk 0:02:57]} 9. a4 {[%clk 0:03:00]}  Qa5 {[%clk 0:02:43]} 10. Bd2 {[%clk 0:02:59]}  axb5 {[%clk 0:02:40]} 11. Bxb5 {[%clk 0:02:58]}  Ba6 {[%clk 0:02:39]} 12. Ra3 {[%clk 0:02:57]}  Nbd7 {[%clk 0:02:35]} 13. Nf3 {[%clk 0:02:52]}  Qb6 {[%clk 0:02:19]} 14. O-O {[%clk 0:02:44]}  Rfb8 {[%clk 0:02:08]} 15. Qc2 {[%clk 0:02:22]}  Qc7 {[%clk 0:01:30]} 16. Re1 {[%clk 0:02:02]}  Ne8 {[%clk 0:01:23]} 17. Bxd7 {[%clk 0:01:18]}  Qxd7 {[%clk 0:01:20]} 18. e5 {[%clk 0:01:18]}  dxe5 {[%clk 0:01:04]} 19. Nxe5 {[%clk 0:01:18]}  Bxe5 {[%clk 0:00:50]} 20. Rxe5 {[%clk 0:01:16]}  Nd6 {[%clk 0:00:51]} 21. Ra2 {[%clk 0:00:23]}  Bc4 {[%clk 0:00:36]} 22. Ra1 {[%clk 0:00:22]}  Bb3 {[%clk 0:00:37]} 23. Qd3 {[%clk 0:00:21]}  Nc4 {[%clk 0:00:33]} 24. Re2 {[%clk 0:00:20]}  Nxb2 {[%clk 0:00:33]} 25. Qg3 {[%clk 0:00:17]}  Nc4 {[%clk 0:00:25]} 26. Bh6 {[%clk 0:00:16]}  f6 {[%clk 0:00:20]} 27. Rae1 {[%clk 0:00:15]}  Re8 {[%clk 0:00:18]} 28. h4 {[%clk 0:00:13]}  Nd6 {[%clk 0:00:15]} 29. Bf4 {[%clk 0:00:10]}  Nf5 {[%clk 0:00:16]} 30. Qd3 {[%clk 0:00:09]}  c4 {[%clk 0:00:16]} 31. Qd2 {[%clk 0:00:07]}  Nxh4 {[%clk 0:00:14]} 32. d6 {[%clk 0:00:05]}  e5 {[%clk 0:00:13]} 33. Bg3 {[%clk 0:00:05]}  Nf5 {[%clk 0:00:14]} 34. Qd5+ {[%clk 0:00:06]}  Qf7 {[%clk 0:00:13]} 35. Qf3 {[%clk 0:00:06]}  Nd4 {[%clk 0:00:13]} 36. Qe3 {[%clk 0:00:06]}  Nxe2+ {[%clk 0:00:13]} 37. Rxe2 {[%clk 0:00:07]}  Rad8 {[%clk 0:00:14]} 38. Nb5 {[%clk 0:00:07]}  Bxa4 {[%clk 0:00:12]} 39. Nc3 {[%clk 0:00:07]}  Bc6 {[%clk 0:00:11]} 40. Rd2 {[%clk 0:00:08]}  Rd7 {[%clk 0:00:11]} 41. Qc5 {[%clk 0:00:08]}  Bb7 {[%clk 0:00:11]} 42. f4 {[%clk 0:00:08]}  exf4 {[%clk 0:00:11]} 43. Bxf4 {[%clk 0:00:09]}  g5 {[%clk 0:00:12]} 44. Bg3 {[%clk 0:00:08]}  Red8 {[%clk 0:00:12]} 45. Rf2 {[%clk 0:00:08]}  h6 {[%clk 0:00:12]} 46. Qd4 {[%clk 0:00:08]}  Qe6 {[%clk 0:00:12]} 47. Rxf6 {[%clk 0:00:07]}  Qe8 {[%clk 0:00:08]} 48. Rxh6 {[%clk 0:00:07]}  Rg7 {[%clk 0:00:08]} 49. Be5 {[%clk 0:00:06]}  Qf8 {[%clk 0:00:06]} 50. Bxg7 {[%clk 0:00:05]}  Qxg7 {[%clk 0:00:07]} 51. Qxg7+ {[%clk 0:00:05]}  Kxg7 {[%clk 0:00:08]} 52. Re6 {[%clk 0:00:05]}  Bc8 {[%clk 0:00:07]} 53. Re7+ {[%clk 0:00:05]}  Kf6 {[%clk 0:00:07]} 54. Rc7 {[%clk 0:00:05]}  Be6 {[%clk 0:00:07]} 55. Kf2 {[%clk 0:00:03]}  Ke5 {[%clk 0:00:06]} 56. Rc5+ {[%clk 0:00:02]}  Kd4 {[%clk 0:00:07]} 57. Na4 {[%clk 0:00:01]}  Bd7 {[%clk 0:00:07]} 0-1


[Site "https://www.chess.com"]

[Event "Titled Tuesday Blitz May 11 2021"]
[White "Paul, Justin"]
[Black "Krivonosov, Oleg"]
[WhiteFideId "2086581"]
[BlackFideId "11600349"]
[WhiteElo "2034"]
[BlackElo "2469"]
[Result "1/2-1/2"]
[Round "03"]
[TimeControl "180+1"]
[Date "2021.05.11"]
[WhiteClock "0:00:12"]
[BlackClock "0:00:10"]

1. Nf3 {[%clk 0:02:41]}  d5 {[%clk 0:02:58]} 2. b3 {[%clk 0:02:41]}  Nf6 {[%clk 0:02:57]} 3. Bb2 {[%clk 0:02:42]}  e6 {[%clk 0:02:57]} 4. e3 {[%clk 0:02:43]}  Be7 {[%clk 0:02:57]} 5. Ne5 {[%clk 0:02:41]}  c5 {[%clk 0:02:55]} 6. f4 {[%clk 0:02:42]}  Nbd7 {[%clk 0:02:50]} 7. Bd3 {[%clk 0:02:41]}  O-O {[%clk 0:02:48]} 8. O-O {[%clk 0:02:41]}  Ne4 {[%clk 0:02:35]} 9. Nc3 {[%clk 0:02:37]}  f5 {[%clk 0:02:31]} 10. Nxe4 {[%clk 0:02:34]}  fxe4 {[%clk 0:02:29]} 11. Be2 {[%clk 0:02:27]}  Nxe5 {[%clk 0:02:27]} 12. fxe5 {[%clk 0:02:26]}  Bd7 {[%clk 0:02:22]} 13. Bg4 {[%clk 0:02:20]}  Qc7 {[%clk 0:02:13]} 14. Qe2 {[%clk 0:02:17]}  Rxf1+ {[%clk 0:02:11]} 15. Rxf1 {[%clk 0:02:17]}  Rf8 {[%clk 0:02:10]} 16. c4 {[%clk 0:02:16]}  Rxf1+ {[%clk 0:02:08]} 17. Qxf1 {[%clk 0:02:17]}  Qc8 {[%clk 0:01:57]} 18. Qf4 {[%clk 0:01:40]}  Bc6 {[%clk 0:01:55]} 19. Bh3 {[%clk 0:01:32]}  b6 {[%clk 0:01:21]} 20. Qg4 {[%clk 0:01:32]}  Kf7 {[%clk 0:01:20]} 21. Qh5+ {[%clk 0:01:32]}  Kg8 {[%clk 0:01:20]} 22. Qg4 {[%clk 0:01:31]}  Kf7 {[%clk 0:01:19]} 23. Qh5+ {[%clk 0:01:28]}  Kg8 {[%clk 0:01:19]} 24. Bg4 {[%clk 0:01:28]}  dxc4 {[%clk 0:01:00]} 25. bxc4 {[%clk 0:01:28]}  h6 {[%clk 0:00:44]} 26. Qh3 {[%clk 0:01:27]}  Bd7 {[%clk 0:00:43]} 27. Bc3 {[%clk 0:01:20]}  Bg5 {[%clk 0:00:42]} 28. g3 {[%clk 0:01:18]}  Qe8 {[%clk 0:00:40]} 29. Qg2 {[%clk 0:01:17]}  Bc6 {[%clk 0:00:40]} 30. h4 {[%clk 0:01:17]}  Bd8 {[%clk 0:00:39]} 31. Qh3 {[%clk 0:01:16]}  Bd7 {[%clk 0:00:38]} 32. Qf1 {[%clk 0:01:16]}  Qf7 {[%clk 0:00:34]} 33. Qf4 {[%clk 0:01:16]}  Bc6 {[%clk 0:00:30]} 34. Bh3 {[%clk 0:01:13]}  h5 {[%clk 0:00:25]} 35. Bg2 {[%clk 0:01:11]}  Qg6 {[%clk 0:00:24]} 36. d3 {[%clk 0:00:55]}  Be7 {[%clk 0:00:20]} 37. dxe4 {[%clk 0:00:46]}  Qf7 {[%clk 0:00:15]} 38. Kf2 {[%clk 0:00:45]}  g5 {[%clk 0:00:14]} 39. hxg5 {[%clk 0:00:45]}  Bxg5 {[%clk 0:00:14]} 40. Qf3 {[%clk 0:00:40]}  Qxf3+ {[%clk 0:00:13]} 41. Bxf3 {[%clk 0:00:41]}  Be8 {[%clk 0:00:13]} 42. Kg2 {[%clk 0:00:41]}  Kg7 {[%clk 0:00:13]} 43. Kf2 {[%clk 0:00:41]}  Bg6 {[%clk 0:00:13]} 44. Ke2 {[%clk 0:00:41]}  Kf8 {[%clk 0:00:13]} 45. Kd3 {[%clk 0:00:42]}  Ke7 {[%clk 0:00:13]} 46. Be1 {[%clk 0:00:42]}  Kd7 {[%clk 0:00:13]} 47. a4 {[%clk 0:00:43]}  Kc6 {[%clk 0:00:13]} 48. Bd1 {[%clk 0:00:43]}  a6 {[%clk 0:00:11]} 49. Bb3 {[%clk 0:00:42]}  Bf7 {[%clk 0:00:11]} 50. Bd1 {[%clk 0:00:43]}  Bg6 {[%clk 0:00:11]} 51. Bc3 {[%clk 0:00:43]}  Bf7 {[%clk 0:00:11]} 52. Bd2 {[%clk 0:00:37]}  Bg6 {[%clk 0:00:11]} 53. Bb3 {[%clk 0:00:33]}  Bf7 {[%clk 0:00:11]} 54. Bc2 {[%clk 0:00:31]}  Bg6 {[%clk 0:00:12]} 55. Bd1 {[%clk 0:00:32]}  Bf7 {[%clk 0:00:12]} 56. Bb3 {[%clk 0:00:32]}  Bg6 {[%clk 0:00:12]} 57. a5 {[%clk 0:00:32]}  Bf7 {[%clk 0:00:10]} 58. axb6 {[%clk 0:00:32]}  Kxb6 {[%clk 0:00:10]} 59. Ba4 {[%clk 0:00:32]}  Be7 {[%clk 0:00:09]} 60. Kc3 {[%clk 0:00:31]}  Bg5 {[%clk 0:00:09]} 61. Bd7 {[%clk 0:00:31]}  h4 {[%clk 0:00:09]} 62. gxh4 {[%clk 0:00:29]}  Bxh4 {[%clk 0:00:09]} 63. Kb3 {[%clk 0:00:25]}  Bg3 {[%clk 0:00:10]} 64. Bc3 {[%clk 0:00:25]}  Bf2 {[%clk 0:00:10]} 65. Bd2 {[%clk 0:00:19]}  Bg3 {[%clk 0:00:10]} 66. Bc3 {[%clk 0:00:15]}  Bf2 {[%clk 0:00:10]} 67. Bd2 {[%clk 0:00:12]}  Bg3 {[%clk 0:00:10]} 1/2-1/2


[Site "https://www.chess.com"]

[Event "Titled Tuesday Blitz May 11 2021"]
[White "Petrovskyi, Vadym"]
[Black "Jakubowski, Krzysztof"]
[WhiteFideId "14165210"]
[BlackFideId "1112848"]
[WhiteElo "2219"]
[BlackElo "2462"]
[Result "1-0"]
[Round "03"]
[TimeControl "180+1"]
[Date "2021.05.11"]
[WhiteClock "0:00:09"]
[BlackClock "0:00:02"]

1. e4 {[%clk 0:03:00]}  c5 {[%clk 0:02:59]} 2. Nf3 {[%clk 0:03:01]}  e6 {[%clk 0:02:57]} 3. d4 {[%clk 0:03:01]}  cxd4 {[%clk 0:02:58]} 4. Nxd4 {[%clk 0:03:02]}  Nc6 {[%clk 0:02:57]} 5. Nxc6 {[%clk 0:03:01]}  bxc6 {[%clk 0:02:56]} 6. c4 {[%clk 0:03:02]}  Bc5 {[%clk 0:02:50]} 7. Bd3 {[%clk 0:03:00]}  d6 {[%clk 0:02:47]} 8. O-O {[%clk 0:02:40]}  Ne7 {[%clk 0:02:41]} 9. Nc3 {[%clk 0:02:35]}  e5 {[%clk 0:02:32]} 10. a3 {[%clk 0:02:32]}  a5 {[%clk 0:02:29]} 11. Qe2 {[%clk 0:02:32]}  Rb8 {[%clk 0:02:22]} 12. Rb1 {[%clk 0:02:26]}  Bd4 {[%clk 0:02:15]} 13. Be3 {[%clk 0:02:22]}  O-O {[%clk 0:02:11]} 14. Na4 {[%clk 0:02:11]}  c5 {[%clk 0:02:07]} 15. Nc3 {[%clk 0:02:07]}  Bxc3 {[%clk 0:01:29]} 16. bxc3 {[%clk 0:02:08]}  Bd7 {[%clk 0:01:28]} 17. Rxb8 {[%clk 0:02:05]}  Qxb8 {[%clk 0:01:29]} 18. Rb1 {[%clk 0:02:05]}  Qc7 {[%clk 0:01:26]} 19. Qb2 {[%clk 0:02:05]}  Bc6 {[%clk 0:01:21]} 20. f3 {[%clk 0:01:58]}  f6 {[%clk 0:01:17]} 21. Qb6 {[%clk 0:01:52]}  Qxb6 {[%clk 0:01:15]} 22. Rxb6 {[%clk 0:01:53]}  Ra8 {[%clk 0:01:14]} 23. Bc2 {[%clk 0:01:47]}  Kf7 {[%clk 0:01:11]} 24. Kf2 {[%clk 0:01:42]}  Ke6 {[%clk 0:01:09]} 25. Ke2 {[%clk 0:01:42]}  Kd7 {[%clk 0:01:10]} 26. Rb1 {[%clk 0:01:38]}  Kc7 {[%clk 0:00:57]} 27. g3 {[%clk 0:01:31]}  Nc8 {[%clk 0:00:56]} 28. Kd3 {[%clk 0:01:25]}  Nb6 {[%clk 0:00:55]} 29. h4 {[%clk 0:01:22]}  Bd7 {[%clk 0:00:52]} 30. Bb3 {[%clk 0:01:18]}  Rb8 {[%clk 0:00:44]} 31. Ba2 {[%clk 0:01:15]}  h5 {[%clk 0:00:37]} 32. Bd2 {[%clk 0:01:07]}  Na4 {[%clk 0:00:27]} 33. Rxb8 {[%clk 0:01:04]}  Kxb8 {[%clk 0:00:28]} 34. Bb3 {[%clk 0:01:03]}  Nb6 {[%clk 0:00:28]} 35. f4 {[%clk 0:01:01]}  Kc7 {[%clk 0:00:21]} 36. f5 {[%clk 0:00:46]}  Ba4 {[%clk 0:00:19]} 37. Bxa4 {[%clk 0:00:30]}  Nxa4 {[%clk 0:00:20]} 38. Bc1 {[%clk 0:00:29]}  Kd7 {[%clk 0:00:19]} 39. Kc2 {[%clk 0:00:29]}  Nb6 {[%clk 0:00:17]} 40. Kd3 {[%clk 0:00:28]}  Ke7 {[%clk 0:00:16]} 41. Be3 {[%clk 0:00:24]}  Kf7 {[%clk 0:00:16]} 42. Bc1 {[%clk 0:00:22]}  Kg8 {[%clk 0:00:14]} 43. Be3 {[%clk 0:00:20]}  Na4 {[%clk 0:00:13]} 44. Bc1 {[%clk 0:00:20]}  Kf7 {[%clk 0:00:13]} 45. Kc2 {[%clk 0:00:20]}  Nb6 {[%clk 0:00:13]} 46. Kd3 {[%clk 0:00:20]}  g6 {[%clk 0:00:11]} 47. Be3 {[%clk 0:00:20]}  Na4 {[%clk 0:00:09]} 48. Bc1 {[%clk 0:00:20]}  Nb6 {[%clk 0:00:08]} 49. Be3 {[%clk 0:00:19]}  a4 {[%clk 0:00:09]} 50. Bc1 {[%clk 0:00:18]}  Nc8 {[%clk 0:00:08]} 51. Be3 {[%clk 0:00:14]}  Ne7 {[%clk 0:00:09]} 52. fxg6+ {[%clk 0:00:13]}  Kxg6 {[%clk 0:00:10]} 53. Bd2 {[%clk 0:00:12]}  Nc6 {[%clk 0:00:08]} 54. Be3 {[%clk 0:00:12]}  Na5 {[%clk 0:00:08]} 55. Bc1 {[%clk 0:00:12]}  Nb3 {[%clk 0:00:07]} 56. Be3 {[%clk 0:00:12]}  Na5 {[%clk 0:00:07]} 57. Bc1 {[%clk 0:00:11]}  Nb7 {[%clk 0:00:07]} 58. Be3 {[%clk 0:00:12]}  Nd8 {[%clk 0:00:08]} 59. Bc1 {[%clk 0:00:12]}  Ne6 {[%clk 0:00:08]} 60. Be3 {[%clk 0:00:12]}  f5 {[%clk 0:00:08]} 61. Bd2 {[%clk 0:00:11]}  Nf8 {[%clk 0:00:03]} 62. Bg5 {[%clk 0:00:11]}  fxe4+ {[%clk 0:00:01]} 63. Kxe4 {[%clk 0:00:10]}  Kf7 {[%clk 0:00:02]} 64. Kd5 {[%clk 0:00:09]} 1-0


[Site "https://www.chess.com"]